fUST/lending_fUST_20240313
["ID","MTS","AMOUNT","RATE_DAILY","PERIOD"]
[318513875,1710269447449,-500.0,0.00015499,2]
[318513876,1710269447458,-41.08923939,0.00015499,2]
[318513877,1710269447471,-472.54646461,0.00015499,2]
[318513878,1710269447480,-205.01353539,0.00015499,2]
[318513879,1710269447491,-294.98646461,0.00015499,2]
[318513880,1710269447501,-500.0,0.00015499,2]
[318513881,1710269447510,-500.0,0.00015499,2]
[318513882,1710269447519,-500.0,0.00015499,2]
[318513883,1710269447528,-500.0,0.00015499,2]
[318513884,1710269447538,-500.0,0.00015499,2]
[318513885,1710269447547,-500.0,0.00015499,2]
[318513886,1710269447556,-500.0,0.00015499,2]
[318513887,1710269447565,-500.0,0.00015499,2]
[318513888,1710269447575,-502.39064373,0.00015499,2]
[318513889,1710269447584,-500.0,0.00015499,2]
[318513890,1710269447593,-500.0,0.00015499,2]
[318513891,1710269447602,-500.0,0.00015499,2]
[318513892,1710269447611,-500.0,0.00015499,2]
[318513893,1710269447621,-265.93855208,0.00015499,2]
[318513894,1710269447630,-500.0,0.00015499,2]
[318513895,1710269447639,-244.13244595,0.00015499,2]
[318513896,1710269447648,-500.0,0.00015499,2]
[318513897,1710269447658,-500.0,0.00015499,2]
[318513898,1710269447667,-500.0,0.00015499,2]
[318513899,1710269447676,-343.68,0.00015499,2]
[318513900,1710269447685,-500.0,0.00015499,2]
[318513901,1710269447694,-500.0,0.00015499,2]
[318513902,1710269447703,-500.0,0.00015499,2]
[318513903,1710269447713,-500.0,0.00015499,2]
[318513904,1710269447722,-500.0,0.00015499,2]
[318513905,1710269447732,-500.0,0.00015499,2]
[318513906,1710269447741,-500.0,0.00015499,2]
[318513907,1710269447750,-568.36,0.00015499,2]
[318513908,1710269447760,-500.0,0.00015499,2]
[318513909,1710269447770,-500.0,0.00015499,2]
[318513910,1710269447780,-257.36,0.00015499,2]
[318513911,1710269447790,-19.17510246,0.00015499,2]
[318513912,1710269447802,-484.96146183,0.00015499,2]
[318513913,1710269447812,-411892.46959289,0.000155,2]
[318513914,1710269447825,-1130.36298653,0.000155,2]
[318513954,1710269448968,-3074.34069388,0.00015498,2]
[318513955,1710269448978,-2149.10993769,0.000155,2]
[318513956,1710269448991,-2727.73772418,0.000155,2]
[318513957,1710269449004,-6820.0,0.000155,2]
[318515487,1710269769303,1431.0,0.000155,7]
[318515489,1710269786847,1430.1,0.000161,9]
[318515490,1710269820499,1000.0,0.00025,120]
[318515495,1710269828090,1000.0,0.00024,120]
[318515496,1710269839078,1000.0,0.00023,99]
[318515497,1710269854178,1000.0,0.00022,120]
[318515498,1710269863112,1000.0,0.00021,90]
[318515503,1710269893317,-419.570663,0.00013575,2]
[318515504,1710269893342,-172.547835,0.00013699,2]
[318515505,1710269912242,-1170.9117122,0.00014233,2]
[318515506,1710269912266,-187.00460086,0.00014264,2]
[318515507,1710269912291,-50.08368694,0.00014264,2]
[318515508,1710269922528,-921.30575563,0.00014264,2]
[318515509,1710269922554,-171.99272321,0.00014401,2]
[318515510,1710269922579,-172.880331,0.00014466,2]
[318515511,1710269922604,-182.632306,0.00014466,2]
[318515512,1710269922630,-449.18888416,0.000145,2]
[318515519,1710270222460,1407.881502,0.00014,2]
[318515997,1710270627036,351.0,0.0002,30]
[318516040,1710270633080,-946.9695734,0.00013728,2]
[318516042,1710270633090,-7371.33963224,0.00013728,2]
[318516044,1710270633101,-17528.66036776,0.00013728,2]
[318516045,1710270633110,-1378.068498,0.00014,2]
[318516047,1710270633120,-687.04591387,0.00014,2]
[318516048,1710270633133,-312.56879444,0.00014,2]
[318516050,1710270633142,-1765.06425627,0.000145,2]
[318516052,1710270633153,-41217.20491432,0.000145,2]
[318516164,1710270638141,-277.69983,0.000145,2]
[318516165,1710270638155,-3947.63155095,0.000145,2]
[318516167,1710270638167,-500.0,0.00014999,2]
[318516169,1710270638178,-410.95953525,0.00015,2]
[318516171,1710270638187,-1772.55588902,0.00015,2]
[318516173,1710270638197,-2000.0,0.00015291,2]
[318516175,1710270638208,-2157.04312356,0.000153,2]
[318516177,1710270638220,-500.0,0.0001538,2]
[318516179,1710270638230,-215.1,0.0001538,2]
[318516181,1710270638239,-271.01329752,0.00015397,2]
[318516183,1710270638251,-500.35153087,0.00015397,2]
[318516185,1710270638259,-500.0,0.00015397,2]
[318516187,1710270638269,-500.0,0.00015397,2]
[318516188,1710270638279,-500.0,0.00015397,2]
[318516190,1710270638289,-500.0,0.00015397,2]
[318516192,1710270638299,-500.0,0.00015397,2]
[318516194,1710270638310,-500.0,0.00015397,2]
[318516197,1710270638321,-500.0,0.00015397,2]
[318516198,1710270638334,-500.0,0.00015397,2]
[318516201,1710270638344,-500.0,0.00015397,2]
[318516203,1710270638354,-500.0,0.00015397,2]
[318516204,1710270638364,-500.64331653,0.00015397,2]
[318516206,1710270638374,-615.26913068,0.00015397,2]
[318516208,1710270638383,-500.0,0.00015397,2]
[318516210,1710270638393,-500.0,0.00015397,2]
[318516212,1710270638402,-500.0,0.00015397,2]
[318516214,1710270638412,-500.0,0.00015397,2]
[318516216,1710270638422,-500.0,0.00015397,2]
[318516218,1710270638431,-500.0,0.00015397,2]
[318516221,1710270638442,-500.0,0.00015397,2]
[318516222,1710270638451,-500.0,0.00015397,2]
[318516224,1710270638460,-759.16,0.00015397,2]
[318516226,1710270638471,-759.16,0.00015397,2]
[318516228,1710270638482,-1927.07,0.00015397,2]
[318516231,1710270638492,-1927.07,0.00015397,2]
[318516232,1710270638501,-255.55303743,0.00015397,2]
[318516234,1710270638510,-517.44,0.00015397,2]
[318516236,1710270638520,-517.44,0.00015397,2]
[318516238,1710270638529,-500.0,0.00015397,2]
[318516240,1710270638538,-500.0,0.00015397,2]
[318516242,1710270638547,-1717.1,0.00015397,2]
[318516244,1710270638556,-1717.1,0.00015397,2]
[318516246,1710270638565,-500.0,0.00015398,2]
[318516248,1710270638575,-500.0,0.00015398,2]
[318516251,1710270638585,-500.0,0.00015398,2]
[318516253,1710270638595,-500.0,0.00015398,2]
[318516254,1710270638605,-500.0,0.00015398,2]
[318516256,1710270638614,-500.0,0.00015398,2]
[318516258,1710270638623,-500.0,0.00015398,2]
[318516260,1710270638632,-500.0,0.00015398,2]
[318516262,1710270638641,-421.30370122,0.00015398,2]
[318516265,1710270638652,-78.69629878,0.00015398,2]
[318516267,1710270638661,-500.0,0.00015398,2]
[318516269,1710270638670,-169.76780812,0.00015398,2]
[318516271,1710270638679,-500.0,0.00015398,2]
[318516273,1710270638688,-500.0,0.00015398,2]
[318516274,1710270638698,-500.0,0.00015398,2]
[318516276,1710270638708,-500.0,0.00015398,2]
[318516279,1710270638718,-500.0,0.00015398,2]
[318516281,1710270638728,-500.0,0.00015398,2]
[318516283,1710270638738,-500.0,0.00015398,2]
[318516285,1710270638748,-500.0,0.00015398,2]
[318516287,1710270638758,-500.0,0.00015398,2]
[318516288,1710270638768,-500.0,0.00015398,2]
[318516291,1710270638777,-500.0,0.00015398,2]
[318516292,1710270638787,-500.0,0.00015398,2]
[318516294,1710270638797,-500.0,0.00015398,2]
[318516296,1710270638806,-500.0,0.00015398,2]
[318516298,1710270638815,-183.6358931,0.00015398,2]
[318516301,1710270638831,-316.3641069,0.00015398,2]
[318516303,1710270638840,-500.0,0.00015398,2]
[318516305,1710270638849,-500.0,0.00015398,2]
[318516307,1710270638859,-500.0,0.00015398,2]
[318516309,1710270638869,-234.30845819,0.00015398,2]
[318516311,1710270638879,-500.0,0.00015398,2]
[318516313,1710270638889,-500.0,0.00015399,2]
[318516315,1710270638898,-312.5457991,0.00015399,2]
[318516402,1710270643175,-1129.73141166,0.00013727,2]
[318516403,1710270643186,-187.4542009,0.00015399,2]
[318516404,1710270643200,-500.0,0.00015399,2]
[318516405,1710270643211,-500.0,0.00015399,2]
[318516406,1710270643222,-500.0,0.00015399,2]
[318516407,1710270643232,-500.0,0.00015399,2]
[318516408,1710270643243,-500.0,0.00015399,2]
[318516409,1710270643254,-500.0,0.00015399,2]
[318516411,1710270643265,-500.0,0.00015399,2]
[318516413,1710270643276,-500.0,0.00015399,2]
[318516415,1710270643287,-500.0,0.00015399,2]
[318516417,1710270643298,-500.0,0.00015399,2]
[318516418,1710270643309,-307.81438744,0.00015399,2]
[318516419,1710270643322,-192.18561256,0.00015399,2]
[318516420,1710270643340,-500.0,0.00015399,2]
[318516421,1710270643357,-500.0,0.00015399,2]
[318516422,1710270643368,-500.0,0.00015399,2]
[318516423,1710270643379,-500.0,0.00015399,2]
[318516424,1710270643389,-500.0,0.00015399,2]
[318516425,1710270643400,-464.89884529,0.00015399,2]
[318516426,1710270643418,-35.10115471,0.00015399,2]
[318516427,1710270643428,-500.0,0.00015399,2]
[318516428,1710270643438,-202.97772351,0.00015399,2]
[318516429,1710270643449,-500.0,0.00015399,2]
[318516430,1710270643459,-500.0,0.00015399,2]
[318516431,1710270643470,-500.0,0.00015399,2]
[318516432,1710270643480,-265.66528904,0.00015399,2]
[318516433,1710270643490,-500.0,0.00015399,2]
[318516434,1710270643500,-500.0,0.00015399,2]
[318516435,1710270643510,-500.0,0.00015399,2]
[318516436,1710270643521,-500.0,0.00015399,2]
[318516437,1710270643531,-356.0988293,0.00015399,2]
[318516438,1710270643544,-143.9011707,0.00015399,2]
[318516439,1710270643554,-152.15603449,0.00015399,2]
[318516457,1710270646442,-347.84396551,0.00015399,2]
[318516458,1710270646453,-215.74447393,0.00015399,2]
[318516459,1710270646464,-303.2013292,0.00015399,2]
[318516460,1710270646474,-500.0,0.00015399,2]
[318516461,1710270646484,-500.0,0.00015399,2]
[318516462,1710270646494,-500.0,0.00015399,2]
[318516463,1710270646504,-500.0,0.00015399,2]
[318516464,1710270646513,-480.4791655,0.00015399,2]
[318516465,1710270646523,-500.0,0.00015399,2]
[318516466,1710270646533,-500.0,0.00015399,2]
[318516467,1710270646542,-500.0,0.00015399,2]
[318516468,1710270646551,-500.0,0.00015399,2]
[318516469,1710270646562,-595.58,0.00015399,2]
[318516470,1710270646572,-583.25362171,0.00015399,2]
[318516471,1710270646582,-500.0,0.00015399,2]
[318516472,1710270646591,-500.0,0.00015399,2]
[318516473,1710270646602,-500.0,0.00015399,2]
[318516474,1710270646612,-500.0,0.00015399,2]
[318516475,1710270646622,-201.0348663,0.000154,2]
[318516476,1710270646632,-3194.37344447,0.000154,2]
[318516477,1710270646642,-500.0,0.00015489,2]
[318516478,1710270646651,-500.0,0.00015489,2]
[318516479,1710270646662,-500.0,0.00015489,2]
[318516480,1710270646673,-500.0,0.00015489,2]
[318516481,1710270646683,-500.0,0.00015489,2]
[318516482,1710270646694,-500.0,0.00015489,2]
[318516483,1710270646705,-500.0,0.00015489,2]
[318516484,1710270646715,-500.0,0.00015489,2]
[318516485,1710270646844,-759.16,0.00015489,2]
[318516486,1710270646854,-1927.07,0.00015489,2]
[318516487,1710270646864,-517.44,0.00015489,2]
[318516488,1710270646874,-1717.1,0.00015489,2]
[318516489,1710270646885,-9999.99999901,0.0001549,2]
[318516490,1710270646895,-1429.65969294,0.00015494,3]
[318516491,1710270646906,-500.0,0.00015497,2]
[318516492,1710270646916,-500.0,0.00015497,2]
[318516493,1710270646929,-500.0,0.00015497,2]
[318516494,1710270646939,-1474.41177418,0.00015498,2]
[318516495,1710270646949,-191.54405702,0.00015498,2]
[318516496,1710270646958,-1882.13371677,0.00015498,2]
[318516497,1710270646968,-2020.56022276,0.00015498,2]
[318516498,1710270646978,-274.38308574,0.00015498,2]
[318516499,1710270646987,-596.19717157,0.00015498,2]
[318516500,1710270646997,-227.26689456,0.00015498,2]
[318516501,1710270647006,-196.9376957,0.00015498,2]
[318516502,1710270647016,-199.59737851,0.00015498,2]
[318516503,1710270647026,-636.42168661,0.00015498,2]
[318516504,1710270647036,-211.97574014,0.00015498,2]
[318516505,1710270647046,-500.0,0.00015498,2]
[318516506,1710270647055,-499.58066065,0.00015498,2]
[318516507,1710270647065,-559.91762325,0.00015498,2]
[318516508,1710270647075,-263.23365243,0.00015498,2]
[318516509,1710270647085,-500.0,0.00015498,2]
[318516510,1710270647094,-194.84140707,0.00015498,2]
[318516511,1710270647103,-502.44003634,0.00015498,2]
[318516513,1710270647114,-500.0,0.00015498,2]
[318516514,1710270647125,-500.0,0.00015498,2]
[318516515,1710270647137,-310.3970439,0.00015498,2]
[318516516,1710270647146,-500.0,0.00015498,2]
[318516518,1710270647156,-500.0,0.00015498,2]
[318516519,1710270647167,-500.0,0.00015498,2]
[318516521,1710270647178,-500.0,0.00015498,2]
[318516522,1710270647187,-500.0,0.00015498,2]
[318516523,1710270647197,-444.55490484,0.00015498,2]
[318516524,1710270647209,-500.0,0.00015498,2]
[318516525,1710270647221,-500.0,0.00015498,2]
[318516526,1710270647238,-500.0,0.00015498,2]
[318516527,1710270647248,-500.0,0.00015498,2]
[318516528,1710270647258,-500.0,0.00015498,2]
[318516529,1710270647274,-500.0,0.00015498,2]
[318516530,1710270647284,-500.0,0.00015498,2]
[318516531,1710270647294,-500.0,0.00015498,2]
[318516532,1710270647304,-500.0,0.00015498,2]
[318516533,1710270647314,-759.16,0.00015498,2]
[318516534,1710270647324,-759.16,0.00015498,2]
[318516535,1710270647334,-176.06235933,0.00015498,2]
[318516536,1710270647344,-1927.07,0.00015498,2]
[318516537,1710270647354,-1927.07,0.00015498,2]
[318516538,1710270647364,-500.0,0.00015498,2]
[318516539,1710270647373,-517.44,0.00015498,2]
[318516540,1710270647382,-517.44,0.00015498,2]
[318516541,1710270647393,-1717.1,0.00015498,2]
[318516542,1710270647402,-1717.1,0.00015498,2]
[318516543,1710270647412,-528.65561539,0.00015499,2]
[318516544,1710270647422,-884.38898759,0.00015499,2]
[318516545,1710270647432,-500.0,0.00015499,2]
[318516546,1710270647443,-500.0,0.00015499,2]
[318516547,1710270647453,-500.0,0.00015499,2]
[318516548,1710270647464,-500.0,0.00015499,2]
[318516549,1710270647474,-500.0,0.00015499,2]
[318516550,1710270647485,-500.0,0.00015499,2]
[318516551,1710270647496,-500.0,0.00015499,2]
[318516552,1710270647506,-500.0,0.00015499,2]
[318516553,1710270647516,-417.17,0.00015499,2]
[318516554,1710270647527,-500.0,0.00015499,2]
[318516555,1710270647539,-500.0,0.00015499,2]
[318516556,1710270647550,-294.36622071,0.00015499,2]
[318516557,1710270647561,-500.0,0.00015499,2]
[318516558,1710270647572,-500.0,0.00015499,2]
[318516559,1710270647584,-500.0,0.00015499,2]
[318516560,1710270647594,-500.0,0.00015499,2]
[318516561,1710270647605,-500.0,0.00015499,2]
[318516562,1710270647616,-429.53958359,0.00015499,2]
[318516563,1710270647625,-500.0,0.00015499,2]
[318516564,1710270647637,-500.0,0.00015499,2]
[318516565,1710270647649,-500.0,0.00015499,2]
[318516566,1710270647660,-500.0,0.00015499,2]
[318516567,1710270647673,-500.0,0.00015499,2]
[318516568,1710270647684,-500.0,0.00015499,2]
[318516569,1710270647695,-500.0,0.00015499,2]
[318516570,1710270647707,-500.0,0.00015499,2]
[318516571,1710270647718,-500.0,0.00015499,2]
[318516572,1710270647729,-500.0,0.00015499,2]
[318516573,1710270647740,-500.0,0.00015499,2]
[318516574,1710270647752,-500.0,0.00015499,2]
[318516575,1710270647763,-372.60697369,0.00015499,2]
[318516576,1710270647773,-500.0,0.00015499,2]
[318516577,1710270647783,-317.41386845,0.00015499,2]
[318516578,1710270647794,-500.0,0.00015499,2]
[318516579,1710270647805,-500.0,0.00015499,2]
[318516580,1710270647815,-500.0,0.00015499,2]
[318516581,1710270647826,-500.0,0.00015499,2]
[318516582,1710270647837,-500.0,0.00015499,2]
[318516583,1710270647848,-500.0,0.00015499,2]
[318516584,1710270647859,-500.0,0.00015499,2]
[318516585,1710270647869,-500.0,0.00015499,2]
[318516586,1710270647879,-500.0,0.00015499,2]
[318516587,1710270647890,-500.0,0.00015499,2]
[318516588,1710270647899,-500.0,0.00015499,2]
[318516589,1710270647909,-502.07792563,0.00015499,2]
[318516590,1710270647922,-500.0,0.00015499,2]
[318516591,1710270647932,-500.0,0.00015499,2]
[318516592,1710270647942,-500.0,0.00015499,2]
[318516593,1710270647952,-269.65428657,0.00015499,2]
[318516594,1710270647962,-313.83833815,0.00015499,2]
[318516595,1710270647972,-500.0,0.00015499,2]
[318516596,1710270647982,-500.0,0.00015499,2]
[318516597,1710270647992,-500.0,0.00015499,2]
[318516598,1710270648002,-500.0,0.00015499,2]
[318516599,1710270648012,-500.0,0.00015499,2]
[318516600,1710270648022,-500.0,0.00015499,2]
[318516601,1710270648033,-634.8,0.00015499,2]
[318516602,1710270648044,-374.31629048,0.00015499,2]
[318516603,1710270648055,-759.16,0.00015499,2]
[318516604,1710270648066,-759.16,0.00015499,2]
[318516605,1710270648076,-759.16,0.00015499,2]
[318516607,1710270648085,-759.16,0.00015499,2]
[318516609,1710270648095,-759.16,0.00015499,2]
[318516610,1710270648104,-759.16,0.00015499,2]
[318516611,1710270648113,-500.0,0.00015499,2]
[318516612,1710270648123,-759.16,0.00015499,2]
[318516613,1710270648136,-500.0,0.00015499,2]
[318516614,1710270648145,-759.16,0.00015499,2]
[318516616,1710270648155,-759.16,0.00015499,2]
[318516617,1710270648166,-759.16,0.00015499,2]
[318516618,1710270648179,-759.16,0.00015499,2]
[318516620,1710270648189,-759.16,0.00015499,2]
[318516622,1710270648199,-759.16,0.00015499,2]
[318516623,1710270648210,-759.16,0.00015499,2]
[318516624,1710270648220,-759.16,0.00015499,2]
[318516625,1710270648229,-759.16,0.00015499,2]
[318516626,1710270648239,-759.16,0.00015499,2]
[318516627,1710270648248,-759.16,0.00015499,2]
[318516628,1710270648257,-759.24970578,0.00015499,2]
[318516629,1710270648267,-1927.07,0.00015499,2]
[318516630,1710270648276,-1927.07,0.00015499,2]
[318516631,1710270648285,-1927.07,0.00015499,2]
[318516632,1710270648295,-1927.07,0.00015499,2]
[318516633,1710270648307,-1927.07,0.00015499,2]
[318516634,1710270648317,-1927.07,0.00015499,2]
[318516635,1710270648327,-1927.07,0.00015499,2]
[318516636,1710270648336,-1927.07,0.00015499,2]
[318516637,1710270648345,-349.75123513,0.00015499,2]
[318516638,1710270648471,-1577.31876487,0.00015499,2]
[318516639,1710270648480,-675.23182978,0.00015499,2]
[318516640,1710270648491,-1251.83817022,0.00015499,2]
[318516641,1710270648501,-1927.07,0.00015499,2]
[318516642,1710270648510,-1927.07,0.00015499,2]
[318516643,1710270648519,-1927.07,0.00015499,2]
[318516644,1710270648529,-1927.07,0.00015499,2]
[318516645,1710270648541,-1927.07,0.00015499,2]
[318516646,1710270648550,-1927.07,0.00015499,2]
[318516647,1710270648559,-1927.07,0.00015499,2]
[318516648,1710270648568,-1927.07,0.00015499,2]
[318516649,1710270648577,-1927.15833739,0.00015499,2]
[318516650,1710270648586,-500.0,0.00015499,2]
[318516651,1710270648595,-500.0,0.00015499,2]
[318516652,1710270648605,-500.0,0.00015499,2]
[318516653,1710270648615,-500.0,0.00015499,2]
[318516654,1710270648625,-500.0,0.00015499,2]
[318516655,1710270648634,-60.7565387,0.00015499,2]
[318516656,1710270648646,-439.2434613,0.00015499,2]
[318516657,1710270648656,-61.25036516,0.00015499,2]
[318516658,1710270648674,-456.18963484,0.00015499,2]
[318516659,1710270648684,-517.44,0.00015499,2]
[318516660,1710270648695,-517.44,0.00015499,2]
[318516661,1710270648708,-517.44,0.00015499,2]
[318516662,1710270648719,-517.44,0.00015499,2]
[318516663,1710270648728,-517.44,0.00015499,2]
[318516664,1710270648738,-517.44,0.00015499,2]
[318516665,1710270648748,-517.44,0.00015499,2]
[318516666,1710270648758,-517.44,0.00015499,2]
[318516667,1710270648767,-517.44,0.00015499,2]
[318516668,1710270648777,-517.44,0.00015499,2]
[318516669,1710270648787,-517.44,0.00015499,2]
[318516670,1710270648797,-517.44,0.00015499,2]
[318516671,1710270648807,-517.44,0.00015499,2]
[318516672,1710270648817,-517.44,0.00015499,2]
[318516673,1710270648827,-517.44,0.00015499,2]
[318516674,1710270648838,-517.44,0.00015499,2]
[318516675,1710270648848,-517.44,0.00015499,2]
[318516676,1710270648858,-517.63325427,0.00015499,2]
[318516677,1710270648869,-1717.1,0.00015499,2]
[318516678,1710270648879,-1717.1,0.00015499,2]
[318516680,1710270648889,-1717.1,0.00015499,2]
[318516682,1710270648899,-1717.1,0.00015499,2]
[318516684,1710270648909,-1717.1,0.00015499,2]
[318516685,1710270648918,-1717.1,0.00015499,2]
[318516686,1710270648928,-1717.1,0.00015499,2]
[318516687,1710270648937,-1717.1,0.00015499,2]
[318516688,1710270648946,-1717.1,0.00015499,2]
[318516689,1710270648955,-1717.1,0.00015499,2]
[318516690,1710270648964,-529.68714028,0.00015499,2]
[318516691,1710270648976,-1187.41285972,0.00015499,2]
[318516692,1710270648985,-1717.1,0.00015499,2]
[318516693,1710270648995,-1717.1,0.00015499,2]
[318516694,1710270649004,-1717.1,0.00015499,2]
[318516695,1710270649014,-543.98855021,0.00015499,2]
[318516696,1710270649026,-1173.11144979,0.00015499,2]
[318516699,1710270649112,-1717.1,0.00015499,2]
[318516701,1710270649122,-1717.1,0.00015499,2]
[318516702,1710270649137,-1717.1,0.00015499,2]
[318516704,1710270649146,-1717.29430131,0.00015499,2]
[318516705,1710270649155,-83242.77144861,0.000155,2]
[318516706,1710270649168,-339.64638281,0.000155,2]
[318516981,1710271832217,-155.35732184,0.00013411,2]
[318516982,1710271832227,-16634.5320767,0.00013412,2]
[318516983,1710271832237,-427.26516075,0.00013512,2]
[318516984,1710271832246,-7942.4636377,0.00013527,2]
[318516985,1710271832255,-400.88974054,0.00013699,2]
[318516986,1710271832264,-282.7732272,0.00013856,2]
[318516987,1710271832274,-499.53634699,0.000145,2]
[318516988,1710271832283,-880.53,0.00015299,2]
[318516989,1710271832293,-880.53,0.00015299,2]
[318516990,1710271832302,-501.96248607,0.00015299,2]
[318516991,1710271832311,-500.0,0.00015397,2]
[318516992,1710271832321,-581.58143205,0.00015397,2]
[318516993,1710271832330,-500.0,0.00015397,2]
[318516995,1710271832340,-500.0,0.00015397,2]
[318516997,1710271832350,-404.93161785,0.00015397,2]
[318516998,1710271832359,-254.07694599,0.00015398,2]
[318517000,1710271832369,-500.0,0.00015398,2]
[318517002,1710271832379,-880.53,0.00015398,2]
[318517004,1710271832388,-500.0,0.00015398,2]
[318517006,1710271832397,-500.0,0.00015398,2]
[318517008,1710271832406,-373.59,0.00015398,2]
[318517010,1710271832416,-500.0,0.00015398,2]
[318517012,1710271832425,-500.0,0.00015398,2]
[318517014,1710271832435,-500.0,0.00015398,2]
[318517016,1710271832444,-356.79463342,0.00015398,2]
[318517018,1710271832454,-500.0,0.00015398,2]
[318517020,1710271832465,-500.0,0.00015398,2]
[318517022,1710271832474,-500.0,0.00015398,2]
[318517024,1710271832484,-500.0,0.00015398,2]
[318517026,1710271832494,-420.54889831,0.00015398,2]
[318517028,1710271832506,-295.48679084,0.00015398,2]
[318517030,1710271832517,-686.41853135,0.00015399,2]
[318517032,1710271832525,-306.0,0.000154,2]
[318517034,1710271832535,-2391.05230903,0.000154,2]
[318517035,1710271832544,-880.53,0.00015496,2]
[318517037,1710271832554,-500.0,0.00015496,2]
[318517039,1710271832564,-500.0,0.00015496,2]
[318517041,1710271832573,-500.0,0.00015496,2]
[318517043,1710271832584,-500.0,0.00015496,2]
[318517045,1710271832596,-2924.05,0.00015496,2]
[318517047,1710271832605,-2924.05,0.00015496,2]
[318517049,1710271832614,-5224.02,0.00015496,2]
[318517051,1710271832625,-5224.02,0.00015496,2]
[318517053,1710271832635,-500.0,0.00015496,2]
[318517055,1710271832644,-500.0,0.00015496,2]
[318517057,1710271832654,-1028.05,0.00015496,2]
[318517059,1710271832664,-1028.05,0.00015496,2]
[318517061,1710271832673,-500.0,0.00015496,2]
[318517063,1710271832684,-500.0,0.00015496,2]
[318517065,1710271832693,-500.0,0.00015496,2]
[318517067,1710271832703,-500.0,0.00015496,2]
[318517069,1710271832716,-500.0,0.00015496,2]
[318517071,1710271832726,-500.0,0.00015496,2]
[318517073,1710271832736,-500.0,0.00015496,2]
[318517075,1710271832746,-500.0,0.00015496,2]
[318517077,1710271832755,-500.0,0.00015496,2]
[318517079,1710271832764,-500.0,0.00015496,2]
[318517081,1710271832773,-485.26092634,0.00015496,2]
[318517083,1710271832782,-436.36872179,0.00015497,2]
[318517085,1710271832792,-500.0,0.00015497,2]
[318517087,1710271832801,-500.0,0.00015497,2]
[318517089,1710271832810,-193.74919523,0.00015497,2]
[318517090,1710271832822,-306.25080477,0.00015497,2]
[318517091,1710271832831,-500.0,0.00015497,2]
[318517092,1710271832841,-500.0,0.00015497,2]
[318517093,1710271832850,-2924.05,0.00015497,2]
[318517094,1710271832860,-500.0,0.00015497,2]
[318517095,1710271832869,-500.0,0.00015497,2]
[318517096,1710271832878,-500.0,0.00015497,2]
[318517097,1710271832887,-5224.02,0.00015497,2]
[318517098,1710271832897,-500.0,0.00015497,2]
[318517099,1710271832906,-1028.05,0.00015497,2]
[318517100,1710271832915,-500.0,0.00015497,2]
[318517101,1710271832924,-500.0,0.00015497,2]
[318517102,1710271832933,-500.0,0.00015497,2]
[318517103,1710271832942,-500.0,0.00015497,2]
[318517104,1710271832951,-500.0,0.00015497,2]
[318517105,1710271832960,-500.0,0.00015497,2]
[318517106,1710271832969,-596.19717157,0.00015498,2]
[318517107,1710271832978,-191.54405702,0.00015498,2]
[318517108,1710271832987,-273.98795543,0.00015498,2]
[318517109,1710271832996,-2598.2198964,0.00015498,2]
[318517110,1710271833005,-334.93497172,0.00015498,2]